fUSD/lending_fUSD_20250929
["ID","MTS","AMOUNT","RATE_DAILY","PERIOD"]
[388389901,1759150231886,-116.42269793,0.00015288,2]
[388389902,1759150231897,-150.0,0.00015288,2]
[388389903,1759150231907,-101.04253411,0.00015288,2]
[388389904,1759150231920,-48.95746589,0.00015288,2]
[388389905,1759150231930,-150.0,0.00015288,2]
[388389906,1759150231941,-500.0,0.000153,2]
[388389907,1759150231951,-500.0,0.000153,2]
[388389908,1759150231961,-500.0,0.000153,2]
[388389909,1759150231971,-500.0,0.000153,2]
[388389910,1759150231981,-500.0,0.000153,2]
[388389911,1759150231990,-500.0,0.000153,2]
[388389912,1759150232000,-163.17,0.00015428,2]
[388389913,1759150232010,-2591.23,0.00015464,2]
[388389914,1759150232020,-500.0,0.00015521,2]
[388389915,1759150232029,-500.0,0.00015521,2]
[388389917,1759150232039,-393.89761969,0.00015521,2]
[388389918,1759150232049,-500.0,0.00015521,2]
[388389919,1759150232059,-626.16955964,0.00015521,2]
[388389920,1759150232069,-15743.0137317,0.00015522,2]
[388389921,1759150232081,-5213.3462683,0.00015522,2]
[388389922,1759150232091,-273.65,0.00015538,2]
[388389923,1759150232101,-378.35,0.00015631,2]
[388389924,1759150232110,-150.0,0.00015712,2]
[388389925,1759150232120,-786.53,0.00015764,2]
[388389926,1759150232130,-719.97,0.00015764,2]
[388389927,1759150232139,-158.26,0.0001577,2]
[388389928,1759150232148,-347.52,0.00015776,2]
[388389929,1759150232158,-155.78,0.00015782,2]
[388389930,1759150232168,-500.0,0.000158,2]
[388389932,1759150232177,-150.0,0.00015813,2]
[388389934,1759150232188,-150.0,0.00015838,2]
[388389936,1759150232197,-2227.84,0.00015845,2]
[388389937,1759150232207,-1000.0,0.00015848,2]
[388389938,1759150232217,-1000.0,0.00015848,2]
[388389939,1759150232227,-500.0,0.00015848,2]
[388389940,1759150232237,-500.0,0.00015848,2]
[388389941,1759150232248,-1000.0,0.00015848,2]
[388389942,1759150232258,-150.0,0.00015854,2]
[388389943,1759150232267,-150.0,0.00015854,2]
[388389944,1759150232277,-200.0,0.00015973,2]
[388389945,1759150232287,-150.0,0.00016137,2]
[388389946,1759150232296,-150.0,0.00016137,2]
[388389947,1759150232306,-150.0,0.00016137,2]
[388389948,1759150232316,-286.0,0.000163,2]
[388389949,1759150232325,-170.29,0.00016313,2]
[388389950,1759150232335,-273.65,0.00016315,2]
[388389951,1759150232345,-273.54,0.00016359,2]
[388389952,1759150232355,-1500.0,0.00016396,2]
[388389953,1759150232364,-500.0,0.00016396,2]
[388389954,1759150232374,-150.0,0.0001642,2]
[388389955,1759150232383,-150.0,0.0001642,2]
[388389956,1759150232393,-1000.0,0.00016438,2]
[388389957,1759150232404,-151.0,0.00016493,2]
[388389958,1759150232413,-151.0,0.00016493,2]
[388389959,1759150232423,-151.0,0.00016493,2]
[388389960,1759150232433,-151.0,0.00016493,2]
[388389961,1759150232444,-151.0,0.00016493,2]
[388389962,1759150232454,-151.0,0.00016493,2]
[388389963,1759150232464,-200.0,0.00016493,2]
[388389964,1759150232473,-151.0,0.00016493,2]
[388389965,1759150232482,-151.0,0.00016493,2]
[388389966,1759150232491,-288.89,0.00016493,2]
[388389967,1759150232501,-500.0,0.00016493,2]
[388389968,1759150232511,-500.0,0.00016493,2]
[388389969,1759150232521,-500.0,0.00016493,2]
[388389970,1759150232531,-500.0,0.00016493,2]
[388389971,1759150232541,-500.0,0.00016493,2]
[388389972,1759150232551,-500.0,0.00016493,2]
[388389973,1759150232562,-278.59464182,0.00016493,2]
[388389974,1759150232572,-151.0,0.00016493,2]
[388389975,1759150232581,-151.0,0.00016493,2]
[388389976,1759150232590,-151.0,0.00016493,2]
[388389977,1759150232600,-267.99,0.00016493,2]
[388389978,1759150232609,-150.0,0.00016562,2]
[388389979,1759150232619,-305.60093857,0.00016707,2]
[388389980,1759150232629,-195.0,0.00016707,2]
[388389981,1759150232638,-277.8986,0.00016743,2]
[388389982,1759150232648,-300.0,0.00016781,2]
[388389983,1759150232658,-783.39449565,0.00016783,2]
[388389984,1759150232667,-2500.0,0.00016793,2]
[388389985,1759150232677,-3552.34542705,0.00016796,2]
[388389986,1759150232686,-184.75938082,0.00016796,2]
[388389987,1759150232696,-27732.43000054,0.000168,2]
[388389988,1759150232709,-5592.76519946,0.000168,2]
[388389989,1759150232718,-1524.46655268,0.000168,2]
[388389990,1759150233149,-209.21608237,0.000168,2]
[388389991,1759150233176,-610.0,0.000168,3]
[388389992,1759150233187,-377.8604607,0.000168,2]
[388389993,1759150233197,-3552.34542696,0.00016808,2]
[388389994,1759150233206,-377.86046061,0.00016811,2]
[388389995,1759150233216,-3552.34542696,0.00016819,2]
[388389996,1759150233225,-377.86046061,0.00016822,2]
[388389997,1759150233235,-3552.34542696,0.00016831,2]
[388389998,1759150233246,-377.86046061,0.00016833,2]
[388389999,1759150233255,-3552.34542696,0.00016842,2]
[388390000,1759150233265,-377.86046061,0.00016844,2]
[388390001,1759150233274,-3552.34542696,0.00016854,2]
[388390002,1759150233283,-377.86046061,0.00016856,2]
[388390003,1759150233292,-2324.84886708,0.00016865,2]
[388390004,1759150233315,-1227.49655988,0.00016865,2]
[388390005,1759150233325,-377.86046061,0.00016867,2]
[388390006,1759150233334,-3552.34542696,0.00016877,2]
[388390007,1759150233344,-377.86046061,0.00016878,2]
[388390008,1759150233354,-669.63646238,0.00016888,2]
[388390009,1759150233367,-543.17616346,0.00016888,2]
[388390010,1759150233379,-2339.53280112,0.00016888,2]
[388390011,1759150233389,-700.0,0.00016889,2]
[388390012,1759150233399,-500.0,0.00016893,2]
[388390013,1759150233408,-4191.68029792,0.00016893,8]
[388390014,1759150233420,-368.48262326,0.00016893,8]
[388390015,1759150233431,-431.73880762,0.00016893,8]
[388390016,1759150233444,-5008.0982712,0.00016893,8]
[388390017,1759150233453,-6247.9017288,0.00016893,8]
[388390018,1759150233465,-412.23558715,0.00016893,8]
[388390019,1759150233477,-3339.86268405,0.00016893,8]
[388390020,1759150233487,-1172.8675989,0.00016893,8]
[388390021,1759150233546,-343.81921159,0.00016888,2]
[388390022,1759150233559,-273.96126129,0.00016888,2]
[388390023,1759150233570,-208.40240296,0.00016888,2]
[388390024,1759150233581,-18.31806835,0.00016893,8]
[388390025,1759150237757,-196.26516135,0.00016888,2]
[388390026,1759150237779,-377.86046061,0.00016889,2]
[388390027,1759150237799,-8808.81433275,0.00016893,8]
[388390028,1759150237809,-10000.0,0.00016893,8]
[388390029,1759150237820,-736.36,0.00016893,8]
[388390030,1759150237831,-192014.8417,0.00016893,2]
[388390031,1759150237842,-500.0,0.00016896,2]
[388390032,1759150237853,-241337.3030297,0.00016897,2]
[388390033,1759150237864,-165.80758188,0.000169,2]
[388390034,1759150237874,-3552.34542696,0.000169,2]
[388390035,1759150237885,-291.2852635,0.000169,2]
[388390036,1759150237895,-2000.0,0.00016944,2]
[388390037,1759150237906,-500.0,0.00016973,2]
[388390039,1759150237927,-388.63558128,0.00016973,2]
[388390041,1759150237938,-589.47166915,0.00016973,2]
[388390043,1759150237950,-500.0,0.00016973,2]
[388390045,1759150237960,-500.0,0.00016973,2]
[388390047,1759150237971,-500.0,0.00016973,2]
[388390049,1759150237982,-500.0,0.00016973,2]
[388390052,1759150237993,-500.0,0.00016973,2]
[388390054,1759150238004,-500.0,0.00016973,2]
[388390056,1759150238014,-500.0,0.00016973,2]
[388390058,1759150238025,-500.0,0.00016973,2]
[388390060,1759150238036,-500.0,0.00016973,2]
[388390062,1759150238047,-500.0,0.00016973,2]
[388390064,1759150238058,-500.0,0.00016973,2]
[388390066,1759150238069,-500.0,0.00016973,2]
[388390068,1759150238083,-500.0,0.00016973,2]
[388390071,1759150238098,-500.0,0.00016973,2]
[388390073,1759150238109,-500.0,0.00016973,2]
[388390075,1759150238121,-500.0,0.00016973,2]
[388390077,1759150238132,-500.0,0.00016973,2]
[388390079,1759150238142,-500.0,0.00016983,2]
[388390081,1759150238153,-150.0,0.00016986,2]
[388390083,1759150238164,-232.18428218,0.00016986,2]
[388390085,1759150238174,-150.0,0.00016986,2]
[388390088,1759150238185,-150.0,0.00016986,2]
[388390090,1759150238196,-267.99113572,0.00016986,2]
[388390092,1759150238206,-150.0,0.00016986,2]
[388390094,1759150238217,-150.0,0.00016986,2]
[388390096,1759150238228,-150.0,0.00016986,2]
[388390098,1759150238239,-151.0,0.00016997,2]
[388390100,1759150238249,-10000.0,0.00016999,2]
[388390102,1759150238259,-300.0,0.00016999,2]
[388390104,1759150238270,-500.0,0.00016999,2]
[388390106,1759150238281,-500.0,0.00016999,2]
[388390109,1759150238293,-203.47499061,0.00016999,2]
[388390111,1759150238303,-300.0,0.00016999,2]
[388390113,1759150238317,-768.96952081,0.00016999,2]
[388390115,1759150238327,-2816436.67851591,0.00017,2]
[388390234,1759150239715,-1691.45002,0.0001683,2]
[388390236,1759150239726,-181.4106866,0.000169,2]
[388390238,1759150239738,-9400.1392934,0.00017,2]
[388390492,1759150242214,-1862.06701901,0.00017,2]
[388390493,1759150242245,-5352419.242701,0.00017,2]
[388390494,1759150242255,-8401.0888027,0.00017,2]
[388390495,1759150242266,-4122.4391227,0.00017,2]
[388390496,1759150242276,-1266.97205297,0.00017,2]
[388390497,1759150242287,-200.0,0.00017,2]
[388390498,1759150242297,-43498.8221882,0.00017,2]
[388390499,1759150242307,-200.0,0.00017,2]
[388390500,1759150242318,-151.0,0.00017035,2]
[388390501,1759150242328,-599.60298507,0.00017035,2]
[388390502,1759150242339,-8260.13072239,0.00017035,2]
[388390503,1759150242349,-623.58710448,0.00017035,2]
[388390504,1759150242359,-151.0,0.00017035,2]
[388390505,1759150242371,-322.6107,0.00017035,2]
[388390506,1759150242382,-8762.3646788,0.00017035,2]
[388390507,1759150242392,-500.0,0.00017035,2]
[388390508,1759150242402,-500.0,0.00017035,2]
[388390509,1759150242412,-500.0,0.00017035,2]
[388390510,1759150242422,-538.52966699,0.00017035,2]
[388390511,1759150242432,-160.0,0.00017035,2]
[388390512,1759150242443,-239.84119403,0.00017035,2]
[388390513,1759150242454,-151.0,0.00017035,2]
[388390516,1759150242465,-212.67391702,0.00017041,2]
[388390518,1759150242476,-8565.75555911,0.0001709,2]
[388390519,1759150242487,-273.65,0.00017092,2]
[388390520,1759150242496,-171.24,0.00017093,2]
[388390521,1759150242507,-583.0372022,0.00017138,2]
[388390522,1759150242517,-583.0372022,0.00017138,2]
[388390523,1759150242527,-8882.6885148,0.00017145,2]
[388390524,1759150242537,-200.0,0.0001717,2]
[388390525,1759150242548,-9211.34798985,0.000172,2]
[388390526,1759150242558,-9552.16786547,0.00017255,2]
[388390527,1759150242568,-2302.72203697,0.0001731,2]
[388390599,1759150243619,-932.89,0.00015288,2]
[388390600,1759150243631,-710.59587624,0.00015562,2]
[388390601,1759150243643,-222.29412376,0.00015562,2]
[388390602,1759150243653,-932.89,0.00015836,2]
[388390603,1759150243663,-94.20025677,0.0001611,2]
[388390604,1759150243684,-838.68974323,0.0001611,2]
[388390605,1759150243696,-932.89,0.00016384,2]
[388390606,1759150243706,-932.89,0.00016658,2]
[388390607,1759150243716,-179.2,0.00016883,2]
[388390608,1759150243726,-179.2,0.00016887,2]
[388390609,1759150243735,-377.86046061,0.000169,2]
[388390610,1759150243746,-932.89,0.00016932,2]
[388390611,1759150243756,-7602.87603953,0.0001731,2]
[388390612,1759150243770,-200.0,0.00017342,2]
[388390613,1759150243782,-163.17,0.00017357,2]
[388390615,1759150243792,-844.41447255,0.00017365,2]
[388390617,1759150243804,-550.05300345,0.00017365,2]
[388390619,1759150243818,-2930.91111726,0.00017365,2]
[388390636,1759150245754,-358.39982264,0.00016973,2]
[388390639,1759150245813,-3129.7,0.00016973,2]
[388390640,1759150245825,-1576.65017736,0.00016973,2]
[388390641,1759150245835,-932.93062523,0.00017205,2]
[388390642,1759150245844,-4341.43186463,0.00017247,2]
[388390643,1759150245857,-723.31813537,0.00017247,2]
[388390644,1759150245867,-4914.74187463,0.00017365,2]
[388390645,1759150245880,-1031.98473744,0.00017365,2]
[388390646,1759150245889,-2105.78989124,0.0001742,2]
[388390647,1759150245934,-7018.53512722,0.0001742,2]
[388390648,1759150245981,-1527.84807946,0.0001742,2]
[388390649,1759150245992,-11046.30350255,0.00017475,2]
[388390650,1759150246003,-280.0,0.0001748,2]
[388390651,1759150246013,-2500.0,0.00017492,2]
[388390652,1759150246023,-200.0,0.00017515,2]
[388390653,1759150246033,-1000.0,0.00017521,2]
[388390654,1759150246043,-558.08766948,0.00017521,2]
[388390655,1759150246054,-1000.0,0.00017521,2]
[388390656,1759150246066,-454.14942271,0.00017521,2]
[388390757,1759150683947,172.67,8.103e-05,2]
[388390758,1759150684175,172.67,0.00010129,2]
[388390759,1759150684406,172.67,0.00012155,2]
[388390762,1759150684638,172.67,0.00014181,2]
[388390768,1759150858144,10561.35458851,0.00025,120]
[388390793,1759151431885,-150.0,0.00016004,7]
[388390794,1759151431895,-188.73058888,0.00016012,2]
[388390795,1759151431906,-163.17,0.00016035,2]
[388390796,1759151431916,-293.0,0.000161,2]
[388390797,1759151431927,-189.17,0.00016112,2]
[388390798,1759151431937,-172.67,0.00016206,2]
[388390799,1759151431947,-219.43,0.00016286,2]
[388390800,1759151431957,-1000.0,0.00016438,2]
[388390801,1759151431967,-300.0,0.00016499,2]
[388390802,1759151431976,-500.0,0.00016499,2]
[388390803,1759151431986,-500.0,0.00016499,2]
[388390804,1759151431995,-500.0,0.00016499,2]
[388390805,1759151432005,-171.68507459,0.00016499,2]
[388390806,1759151432014,-500.0,0.00016499,2]
[388390807,1759151432024,-500.0,0.00016499,2]
[388390808,1759151432034,-500.0,0.00016499,2]
[388390809,1759151432043,-500.0,0.00016499,2]
[388390810,1759151432053,-580.85009424,0.00016499,2]
[388390811,1759151432062,-35309.43814444,0.000165,2]
[388390812,1759151432071,-1000.0,0.000166,2]
[388390813,1759151432081,-500.0,0.00016673,2]
[388390814,1759151432091,-500.0,0.00016673,2]
[388390815,1759151432100,-1200.0,0.00016698,2]
[388390816,1759151432109,-550.0,0.00016698,2]
[388390817,1759151432118,-619.42984363,0.00016699,2]
[388390818,1759151432131,-182.77802659,0.00016699,2]
[388390819,1759151432143,-109784.59315949,0.000167,2]
[388390820,1759151432155,-129508.7230208,0.000167,2]
[388390821,1759151432200,-500.0,0.00016499,2]
[388390822,1759151432211,-119.35433313,0.000167,2]
[388390826,1759151432244,-500.0,0.00016499,2]
[388390828,1759151432255,-1491.92569349,0.000167,2]
[388390830,1759151432266,-649.93542138,0.000167,2]
[388390832,1759151432279,-30042.42912824,0.000167,2]
[388390834,1759151432289,-500.0,0.000167,2]
[388390836,1759151432299,-700.0,0.00016763,2]
[388390838,1759151432309,-212.67391702,0.00016787,2]
[388390841,1759151432318,-500.0,0.00016787,2]
[388390842,1759151432328,-500.0,0.00016787,2]
[388390844,1759151432337,-177.37,0.00016796,2]
[388390846,1759151432347,-83149.3624,0.00016797,2]
[388390848,1759151432356,-180.0,0.00016813,2]
[388390850,1759151432367,-10000.0,0.00016893,8]
[388390852,1759151432377,-10000.0,0.00016893,8]
[388390854,1759151432386,-10000.0,0.00016893,8]
[388390856,1759151432396,-10000.0,0.00016893,8]
[388390858,1759151432406,-10000.0,0.00016893,8]
[388390860,1759151432415,-10000.0,0.00016893,8]
[388390862,1759151432426,-10000.0,0.00016893,8]
[388390864,1759151432437,-10000.0,0.00016893,8]
[388390867,1759151432447,-10000.0,0.00016893,8]
[388390869,1759151432457,-10000.0,0.00016893,8]
[388390870,1759151432466,-1840.9,0.00016893,8]
[388390871,1759151432476,-10000.0,0.00016893,8]
[388390872,1759151432485,-10000.0,0.00016893,8]
[388390873,1759151432494,-5492.07399542,0.00016893,8]
[388390874,1759151432505,-3977.41532516,0.000169,2]
[388390875,1759151432514,-500.0,0.00016974,2]
[388390876,1759151432523,-250.0,0.00017,2]
[388390877,1759151432533,-160.0,0.00017132,2]
[388390878,1759151432544,-623.58710448,0.00017132,2]
[388390879,1759151432553,-599.60298507,0.00017132,2]
[388390880,1759151432563,-8762.3646788,0.00017132,2]
[388390881,1759151432572,-239.84119403,0.00017132,2]
[388390882,1759151432582,-500.0,0.00017132,2]
[388390883,1759151432591,-500.0,0.00017132,2]
[388390884,1759151432600,-500.0,0.00017132,2]
[388390885,1759151432610,-500.0,0.00017132,2]
[388390886,1759151432619,-500.0,0.00017132,2]
[388390887,1759151432629,-500.0,0.00017132,2]
[388390888,1759151432639,-423.81200243,0.00017132,2]
[388390889,1759151432648,-151.0,0.00017132,2]
[388390890,1759151432658,-151.0,0.00017132,2]
[388390891,1759151432668,-322.6107,0.00017132,2]
[388390892,1759151432679,-8260.13072239,0.00017132,2]
[388390893,1759151432688,-151.0,0.00017132,2]
[388390894,1759151432698,-500.0,0.00017132,2]
[388390895,1759151432707,-107.7834334,0.00017132,2]
[388390896,1759151432719,-158.36959117,0.00017132,2]
[388390897,1759151432729,-100.14347789,0.00017187,2]
[388390898,1759151432741,-572.72802949,0.00017187,2]
[388390899,1759151432769,-1017.9370502,0.00017187,2]
[388390900,1759151432782,-811.9472023,0.00017187,2]
[388390901,1759151432795,-5027.50000025,0.00017187,2]
[388390902,1759151432808,-544.56254254,0.00017187,2]
[388390903,1759151432821,-490.93725644,0.00017187,2]
[388390904,1759151432832,-709.30677392,0.00017206,2]
[388390905,1759151432863,-298.57117175,0.00016499,2]
[388390906,1759151432876,-201.42882825,0.00016499,2]
[388390907,1759151432887,-400.91333975,0.00017206,2]
[388390908,1759151432922,-337.17973229,0.00016499,2]
[388390909,1759151432935,-162.82026771,0.00016499,2]
[388390910,1759151432945,-252.50573199,0.00017206,2]
[388390915,1759151437844,-865.15710188,0.00017206,2]
[388390916,1759151437857,-431.69598331,0.00017206,2]
[388390917,1759151437869,-670.3099998,0.00017206,2]
[388390918,1759151437899,-487.74502,0.00017206,2]
[388390919,1759151437911,-44458.23195707,0.00017206,2]
[388390920,1759151437956,-345.87173433,0.00017206,2]
[388390921,1759151437968,-402.74231899,0.00017206,2]
[388390922,1759151438013,-490.28859006,0.00017206,2]
[388390923,1759151438023,-2.63941269,0.00017206,2]
[388390924,1759151438035,-2632.01999999,0.00017206,2]
[388390925,1759151438048,-409.97273087,0.00017206,2]
[388390926,1759151438072,-335.54823615,0.00017206,2]
[388390927,1759151438084,-142.93676385,0.00017206,2]
[388390928,1759151438096,-4729.2242178,0.00017206,2]
[388390929,1759151438108,-11574.39984868,0.00017206,2]
[388390930,1759151438150,-1417.38767714,0.00017206,2]
[388391078,1759151439823,-445.66979882,0.00017206,2]
[388391080,1759151439836,-11155.0,0.00017206,2]
[388391091,1759151439936,-11560.99351921,0.00017206,2]
[388391096,1759151439963,-253.74803033,0.00017206,2]
[388391100,1759151439996,-6818.30011143,0.00017206,2]
[388391107,1759151440052,-1608.49131959,0.00017206,2]
[388391109,1759151440065,-3838.50049875,0.00017206,2]
[388391110,1759151440076,-500.0,0.00017206,2]
[388391112,1759151440087,-4348.11184494,0.00017206,2]
[388391114,1759151440100,-4309.11571996,0.00017206,2]
[388391116,1759151440110,-1125.0846602,0.00017206,2]
[388391118,1759151440120,-1000.0,0.00017221,2]
[388391120,1759151440134,-1000.0,0.00017221,2]
[388391122,1759151440145,-1513.01841457,0.00017242,2]
[388391124,1759151440158,-7369.67010023,0.00017242,2]
[388391127,1759151440168,-500.0,0.00017248,2]
[388391129,1759151440178,-731.33777458,0.00017259,2]
[388391131,1759151440189,-287.0,0.0001728,2]
[388391133,1759151440200,-55.77598981,0.00017297,2]
[388391135,1759151440212,-9077.54866152,0.00017297,2]
[388391137,1759151440225,-78.02333852,0.00017297,2]
[388391139,1759151440235,-2000.0,0.000173,2]
[388391141,1759151440245,-6865.81689637,0.00017352,2]
[388391143,1759151440257,-771.32556962,0.00017352,2]
[388391146,1759151440274,-400.0,0.00017352,2]
[388391148,1759151440287,-1515.02539948,0.00017352,2]
[388391150,1759151440297,-350.53,0.00017361,2]
[388391152,1759151440307,-300.0,0.00017361,2]
[388391155,1759151440317,-200.0,0.00017381,2]
[388391157,1759151440327,-9905.5980765,0.00017407,2]
[388391159,1759151440337,-218.83,0.00017425,2]
[388391161,1759151440347,-10272.10520533,0.00017462,2]
[388391163,1759151440357,-500.0,0.0001748,2]
[388391165,1759151440368,-10652.17309792,0.00017517,2]
[388391167,1759151440378,-1266.97205297,0.00017521,2]
[388391170,1759151440397,-200.0,0.00017521,2]
[388391172,1759151440408,-151.0,0.00017521,2]
[388391174,1759151440419,-151.0,0.00017521,2]
[388391176,1759151440429,-1409.54169,0.00017521,2]
[388391178,1759151440440,-500.0,0.00017522,2]
[388391180,1759151440450,-11046.30350255,0.00017572,2]
[388391183,1759151440461,-397.31267786,0.00017613,2]
[388391185,1759151440471,-11455.01673214,0.00017627,2]
[388391187,1759151440482,-151.0,0.0001768,2]
[388391188,1759151440492,-151.0,0.0001768,2]
[388391191,1759151440504,-157.98394193,0.0001768,2]
[388391193,1759151440514,-11878.85235123,0.00017682,2]
[388391195,1759151440524,-200.0,0.00017696,2]
[388391197,1759151440535,-12318.36988823,0.00017737,2]
[388391199,1759151440545,-5587.99102196,0.00017741,2]
[388391201,1759151440556,-5000.0,0.00017741,2]
[388391203,1759151440566,-5000.0,0.00017741,2]
[388391205,1759151440576,-500.0,0.00017754,2]
[388391207,1759151440587,-500.0,0.00017768,2]
[388391209,1759151440598,-500.0,0.00017768,2]
[388391211,1759151440609,-12774.14957409,0.00017792,2]
[388391213,1759151440619,-500.0,0.00017796,2]
[388391215,1759151440630,-674.0,0.00017817,2]
[388391217,1759151440640,-15661.58678681,0.00017846,2]
[388391219,1759151440651,-13246.79310833,0.00017847,2]
[388391221,1759151440662,-700.0,0.00017859,2]
[388391223,1759151440672,-273.65,0.00017869,2]
[388391225,1759151440683,-200.0,0.00017873,2]
[388391227,1759151440694,-13736.92445334,0.00017902,2]
[388391230,1759151440705,-1230.0,0.0001792,2]
[388391232,1759151440715,-1230.0,0.0001792,2]
[388391234,1759151440726,-1230.0,0.0001792,2]
[388391236,1759151440737,-151.0,0.0001792,2]
[388391238,1759151440747,-151.0,0.0001792,2]
[388391240,1759151440758,-1230.0,0.0001792,2]
[388391242,1759151440769,-1230.0,0.0001792,2]
[388391244,1759151440780,-1230.0,0.0001792,2]
[388391247,1759151440796,-151.0,0.0001792,2]
[388391249,1759151440806,-1230.0,0.0001792,2]
[388391251,1759151440817,-151.0,0.0001792,2]
[388391253,1759151440827,-151.0,0.0001792,2]
[388391255,1759151440838,-1230.0,0.0001792,2]
[388391257,1759151440848,-151.0,0.0001792,2]
[388391259,1759151440859,-1230.0,0.0001792,2]
[388391261,1759151440869,-151.0,0.0001792,2]
[388391263,1759151440879,-151.0,0.0001792,2]
[388391265,1759151440890,-151.0,0.0001792,2]
[388391267,1759151440901,-1230.0,0.0001792,2]
[388391269,1759151440912,-151.0,0.0001792,2]
[388391271,1759151440923,-151.0,0.0001792,2]
[388391274,1759151440934,-1230.0,0.0001792,2]
[388391276,1759151440945,-151.0,0.0001792,2]
[388391278,1759151440955,-151.0,0.0001792,2]
[388391280,1759151440966,-151.0,0.0001792,2]
[388391282,1759151440976,-1230.0,0.0001792,2]
[388391284,1759151440987,-151.0,0.0001792,2]
[388391286,1759151441000,-151.0,0.0001792,2]
[388391288,1759151441010,-1230.0,0.0001792,2]
[388391290,1759151441021,-1230.0,0.0001792,2]
[388391292,1759151441031,-1230.0,0.0001792,2]
[388391294,1759151441042,-1230.0,0.0001792,2]
[388391296,1759151441053,-1230.0,0.0001792,2]
[388391299,1759151441063,-1230.0,0.0001792,2]
[388391301,1759151441074,-151.0,0.0001792,2]
[388391303,1759151441084,-151.0,0.0001792,2]
[388391305,1759151441094,-1230.0,0.0001792,2]
[388391307,1759151441105,-151.0,0.0001792,2]
[388391309,1759151441115,-1230.0,0.0001792,2]
[388391311,1759151441127,-1230.0,0.0001792,2]
[388391312,1759151441138,-151.0,0.0001792,2]
[388391314,1759151441148,-1230.0,0.0001792,2]
[388391317,1759151441158,-1230.0,0.0001792,2]
[388391319,1759151441169,-151.0,0.0001792,2]
[388391321,1759151441181,-1230.0,0.0001792,2]
[388391323,1759151441192,-151.0,0.0001792,2]
[388391325,1759151441207,-1230.0,0.0001792,2]
[388391327,1759151441217,-151.0,0.0001792,2]
[388391328,1759151441227,-151.0,0.0001792,2]
[388391329,1759151441238,-1230.0,0.0001792,2]
[388391330,1759151441248,-151.0,0.0001792,2]
[388391331,1759151441258,-151.0,0.0001792,2]
[388391332,1759151441269,-1230.0,0.0001792,2]
[388391333,1759151441279,-151.0,0.0001792,2]
[388391334,1759151441290,-151.0,0.0001792,2]
[388391335,1759151441300,-1230.0,0.0001792,2]
[388391336,1759151441311,-151.0,0.0001792,2]
[388391337,1759151441321,-151.0,0.0001792,2]
[388391338,1759151441331,-1230.0,0.0001792,2]
[388391339,1759151441342,-151.0,0.0001792,2]
[388391340,1759151441353,-151.0,0.0001792,2]
[388391341,1759151441363,-1230.0,0.0001792,2]
[388391342,1759151441373,-151.0,0.0001792,2]
[388391343,1759151441383,-151.0,0.0001792,2]
[388391344,1759151441394,-1230.0,0.0001792,2]
[388391345,1759151441404,-151.0,0.0001792,2]
[388391346,1759151441415,-151.0,0.0001792,2]
[388391347,1759151441425,-1230.0,0.0001792,2]
[388391348,1759151441435,-151.0,0.0001792,2]
[388391350,1759151441446,-1230.0,0.0001792,2]
[388391352,1759151441456,-151.0,0.0001792,2]
[388391354,1759151441466,-151.0,0.0001792,2]
[388391356,1759151441476,-1230.0,0.0001792,2]
[388391358,1759151441487,-151.0,0.0001792,2]
[388391360,1759151441497,-151.0,0.0001792,2]
[388391362,1759151441507,-762.67692072,0.0001792,2]
[388391364,1759151441518,-151.0,0.0001792,2]
[388391366,1759151441528,-151.0,0.0001792,2]
[388391368,1759151441539,-153.29613829,0.0001792,2]